fUSD/lending_fUSD_20250606
["ID","MTS","AMOUNT","RATE_DAILY","PERIOD"]
[364763215,1749232244386,-2033.06,0.00027397,5]
[364763216,1749232244399,-3682.99,0.00027397,5]
[364763217,1749232244408,-480.0,0.00027397,5]
[364763218,1749232244417,-1300.74,0.00027397,5]
[364763219,1749232244427,-480.0,0.00027397,5]
[364763220,1749232244436,-929.02,0.00027397,5]
[364763221,1749232244446,-480.0,0.00027397,5]
[364763222,1749232244455,-480.0,0.00027397,5]
[364763223,1749232244465,-480.0,0.00027397,5]
[364763224,1749232244476,-701.51,0.00027397,5]
[364763225,1749232244486,-480.0,0.00027397,5]
[364763226,1749232244496,-480.0,0.00027397,5]
[364763227,1749232244506,-692.25,0.00027397,5]
[364763228,1749232244516,-538.67,0.00027397,5]
[364763229,1749232244526,-1997.42,0.00027397,5]
[364763230,1749232244536,-480.0,0.00027397,5]
[364763231,1749232244546,-675.4,0.00027397,5]
[364763232,1749232244555,-617.13,0.00027397,5]
[364763233,1749232244565,-613.83580453,0.00027397,5]
[364763234,1749232244576,-1456.03,0.00027397,5]
[364763235,1749232244585,-786.44,0.00027397,5]
[364763236,1749232244595,-480.0,0.00027397,5]
[364763237,1749232244668,-480.0,0.00027397,5]
[364763238,1749232244678,-420.0,0.00027397,2]
[364763239,1749232244687,-480.0,0.00027397,5]
[364763240,1749232244696,-480.0,0.00027397,5]
[364763241,1749232244706,-480.0,0.00027397,5]
[364763242,1749232244715,-480.0,0.00027397,5]
[364763243,1749232244724,-489.87378188,0.00027397,5]
[364763244,1749232244733,-480.0,0.00027397,5]
[364763245,1749232244743,-480.0,0.00027397,5]
[364763246,1749232244753,-480.0,0.00027397,5]
[364763247,1749232244762,-10592.65,0.00027397,5]
[364763248,1749232244771,-480.0,0.00027397,5]
[364763249,1749232244781,-492.25807826,0.00027397,5]
[364763250,1749232244790,-480.0,0.00027397,5]
[364763251,1749232244800,-718.37,0.00027397,5]
[364763252,1749232244809,-480.0,0.00027397,5]
[364763253,1749232244818,-1419.5,0.00027397,5]
[364763254,1749232244827,-500.0,0.00027397,5]
[364763255,1749232244836,-500.0,0.00027397,5]
[364763256,1749232244846,-500.0,0.00027397,5]
[364763257,1749232244855,-480.0,0.00027397,5]
[364763258,1749232244864,-480.0,0.00027397,5]
[364763259,1749232244873,-480.0,0.00027397,5]
[364763260,1749232244883,-480.0,0.00027397,5]
[364763261,1749232244893,-480.0,0.00027397,5]
[364763262,1749232244902,-480.0,0.00027397,5]
[364763263,1749232244912,-1116.9,0.00027397,5]
[364763264,1749232244921,-480.0,0.00027397,5]
[364763265,1749232244931,-1541.9,0.00027397,5]
[364763266,1749232244940,-532.82,0.00027397,5]
[364763267,1749232244950,-480.0,0.00027397,5]
[364763268,1749232244959,-1308.73,0.00027397,5]
[364763269,1749232244969,-1427.53,0.00027397,5]
[364763270,1749232244978,-1000.0,0.00027397,5]
[364763271,1749232244987,-480.0,0.00027397,5]
[364763272,1749232244997,-515.9,0.00027397,5]
[364763273,1749232245008,-699.94,0.00027397,5]
[364763274,1749232245017,-484.33830044,0.00027397,5]
[364763275,1749232245027,-1320.37,0.00027397,5]
[364763276,1749232245036,-480.0,0.00027397,5]
[364763277,1749232245046,-6585.63,0.00027397,5]
[364763278,1749232245055,-480.0,0.00027397,5]
[364763279,1749232245065,-963.11,0.00027397,5]
[364763280,1749232245074,-543.07,0.00027397,5]
[364763281,1749232245083,-480.0,0.00027397,5]
[364763282,1749232245093,-480.0,0.00027397,5]
[364763283,1749232245102,-2238.96,0.00027397,5]
[364763284,1749232245112,-500.0,0.00027397,2]
[364763285,1749232245121,-500.0,0.00027397,2]
[364763286,1749232245130,-480.0,0.00027397,5]
[364763287,1749232245140,-500.0,0.00027397,2]
[364763288,1749232245149,-480.0,0.00027397,5]
[364763289,1749232245159,-480.0,0.00027397,5]
[364763290,1749232245168,-480.0,0.00027397,5]
[364763291,1749232245177,-480.0,0.00027397,5]
[364763292,1749232245187,-158.80103212,0.00027397,5]
[364763293,1749232245197,-503.82,0.00027397,5]
[364763294,1749232245207,-480.0,0.00027397,5]
[364763295,1749232245217,-480.0,0.00027397,5]
[364763296,1749232245226,-480.0,0.00027397,5]
[364763297,1749232245235,-5689.11,0.00027397,5]
[364763298,1749232245245,-480.0,0.00027397,5]
[364763299,1749232245254,-624.07,0.00027397,5]
[364763300,1749232245264,-480.0,0.00027397,5]
[364763301,1749232245274,-502.56,0.00027397,5]
[364763302,1749232245283,-589.72,0.00027397,5]
[364763303,1749232245292,-480.0,0.00027397,5]
[364763304,1749232245302,-480.0,0.00027397,5]
[364763305,1749232245312,-480.0,0.00027397,5]
[364763306,1749232245322,-1738.52,0.00027397,5]
[364763307,1749232245333,-2039.06,0.00027397,5]
[364763308,1749232245342,-490.81977368,0.00027397,5]
[364763309,1749232245351,-502.92530979,0.00027397,5]
[364763310,1749232245360,-480.0,0.00027397,5]
[364763311,1749232245370,-480.0,0.00027397,5]
[364763312,1749232245379,-1704.16,0.00027397,5]
[364763313,1749232245388,-480.0,0.00027397,5]
[364763314,1749232245401,-480.0,0.00027397,5]
[364763315,1749232245410,-4049.17,0.00027397,5]
[364763316,1749232245419,-708.55,0.00027397,5]
[364763317,1749232245428,-708.55,0.00027397,5]
[364763318,1749232245440,-480.0,0.00027397,5]
[364763319,1749232245450,-480.0,0.00027397,5]
[364763320,1749232245460,-514.15,0.00027397,5]
[364763321,1749232245470,-514.15,0.00027397,5]
[364763322,1749232245481,-2523.1,0.00027397,5]
[364763323,1749232245493,-514.15,0.00027397,5]
[364763324,1749232245503,-480.0,0.00027397,5]
[364763325,1749232245512,-480.0,0.00027397,5]
[364763326,1749232245522,-480.0,0.00027397,5]
[364763327,1749232245532,-500.0,0.00027397,5]
[364763328,1749232245541,-500.0,0.00027397,5]
[364763329,1749232245551,-500.0,0.00027397,5]
[364763330,1749232245562,-1489.66,0.00027397,5]
[364763331,1749232245572,-480.0,0.00027397,5]
[364763332,1749232245582,-1394.31,0.00027397,5]
[364763333,1749232245591,-480.0,0.00027397,5]
[364763334,1749232245600,-13047.26,0.00027397,5]
[364763335,1749232245611,-480.0,0.00027397,5]
[364763336,1749232245622,-480.0,0.00027397,5]
[364763337,1749232245632,-824.96,0.00027397,5]
[364763338,1749232245641,-480.0,0.00027397,5]
[364763339,1749232245650,-480.0,0.00027397,5]
[364763340,1749232245660,-1833.77,0.00027397,5]
[364763341,1749232245669,-480.0,0.00027397,5]
[364763342,1749232245679,-480.0,0.00027397,5]
[364763343,1749232245687,-512.45,0.00027397,5]
[364763344,1749232245697,-480.0,0.00027397,5]
[364763345,1749232245706,-486.50299451,0.00027397,5]
[364763346,1749232245716,-795.02,0.00027397,5]
[364763347,1749232245725,-960.81,0.00027397,5]
[364763348,1749232245735,-953.38,0.00027397,5]
[364763349,1749232245744,-585.62,0.00027397,5]
[364763350,1749232245753,-1623.99,0.00027397,5]
[364763351,1749232245763,-567.44,0.00027397,5]
[364763352,1749232245773,-1506.02,0.00027397,5]
[364763353,1749232245784,-667.23,0.00027397,5]
[364763354,1749232245794,-480.0,0.00027397,5]
[364763355,1749232245804,-480.0,0.00027397,5]
[364763356,1749232245813,-480.0,0.00027397,5]
[364763357,1749232245823,-480.0,0.00027397,5]
[364763358,1749232245833,-480.0,0.00027397,5]
[364763359,1749232245843,-1950.34,0.00027397,5]
[364763360,1749232245853,-2303.58,0.00027397,5]
[364763361,1749232245863,-540.83,0.00027397,5]
[364763362,1749232245873,-480.0,0.00027397,5]
[364763363,1749232245883,-1340.96,0.00027397,5]
[364763364,1749232245892,-480.0,0.00027397,5]
[364763365,1749232245901,-957.47,0.00027397,5]
[364763366,1749232245910,-606.43,0.00027397,5]
[364763367,1749232245919,-582.38,0.00027397,5]
[364763368,1749232245930,-480.0,0.00027397,5]
[364763369,1749232245939,-2526.43,0.00027397,5]
[364763370,1749232245949,-480.0,0.00027397,5]
[364763371,1749232245958,-480.0,0.00027397,5]
[364763372,1749232245968,-517.73,0.00027397,5]
[364763373,1749232245977,-480.0,0.00027397,5]
[364763374,1749232245987,-486.12,0.00027397,5]
[364763375,1749232245996,-480.0,0.00027397,5]
[364763376,1749232246006,-480.0,0.00027397,5]
[364763377,1749232246016,-480.0,0.00027397,5]
[364763378,1749232246026,-480.0,0.00027397,2]
[364763379,1749232246035,-3628.25,0.00027397,5]
[364763380,1749232246045,-492.7162033,0.00027397,5]
[364763381,1749232246054,-2448.87,0.00027397,5]
[364763382,1749232246064,-520.55,0.00027397,5]
[364763383,1749232246073,-480.0,0.00027397,5]
[364763384,1749232246083,-480.0,0.00027397,5]
[364763385,1749232246092,-480.0,0.00027397,5]
[364763386,1749232246102,-567.01,0.00027397,5]
[364763387,1749232246112,-1108.87,0.00027397,5]
[364763388,1749232246121,-718.02,0.00027397,5]
[364763389,1749232246131,-46728.91,0.00027397,5]
[364763391,1749232246141,-480.0,0.00027397,5]
[364763392,1749232246150,-618.44,0.00027397,5]
[364763393,1749232246159,-480.0,0.00027397,5]
[364763394,1749232246169,-480.0,0.00027397,5]
[364763395,1749232246179,-480.0,0.00027397,5]
[364763397,1749232246189,-480.0,0.00027397,5]
[364763398,1749232246198,-490.28,0.00027397,5]
[364763399,1749232246207,-480.0,0.00027397,5]
[364763400,1749232246217,-480.0,0.00027397,5]
[364763401,1749232246226,-480.0,0.00027397,5]
[364763402,1749232246235,-480.0,0.00027397,5]
[364763403,1749232246245,-1380.27,0.00027397,5]
[364763404,1749232246254,-2834.51,0.00027397,5]
[364763405,1749232246264,-4546.68,0.00027397,5]
[364763406,1749232246273,-1547.97,0.00027397,5]
[364763407,1749232246283,-6601.32,0.00027397,5]
[364763408,1749232246292,-584.0,0.00027397,2]
[364763409,1749232246301,-166.49,0.00027397,2]
[364763410,1749232246311,-630.06,0.00027397,2]
[364763411,1749232246321,-393.1,0.00027397,2]
[364763412,1749232246331,-150.99,0.00027397,2]
[364763413,1749232246340,-830.06,0.00027397,2]
[364763414,1749232246349,-6593.36377391,0.00027415,2]
[364763415,1749232246359,-196.20684409,0.00027461,2]
[364763416,1749232246368,-26373.4550956,0.00027531,2]
[364763417,1749232246378,-125273.911704,0.00027541,2]
[364763418,1749232246388,-500.0,0.0002755,5]
[364763419,1749232246402,-498.46259307,0.0002755,5]
[364763420,1749232246411,-500.0,0.0002755,2]
[364763421,1749232246420,-708.55,0.0002755,5]
[364763422,1749232246429,-514.15,0.0002755,5]
[364763423,1749232246441,-224.62488269,0.00027551,2]
[364763424,1749232246451,-4799.293659,0.00027552,2]
[364763425,1749232246460,-500.0,0.00027559,5]
[364763426,1749232246470,-500.0,0.0002756,2]
[364763427,1749232246480,-500.0,0.0002756,2]
[364763428,1749232246491,-500.0,0.0002756,5]
[364763429,1749232246500,-500.0,0.0002756,5]
[364763430,1749232246510,-300.72522225,0.0002756,5]
[364763431,1749232246520,-500.0,0.0002756,2]
[364763432,1749232246529,-708.55,0.0002756,5]
[364763433,1749232246539,-708.55,0.0002756,5]
[364763434,1749232246548,-514.15,0.0002756,5]
[364763435,1749232246558,-514.15,0.0002756,5]
[364763436,1749232246569,-480.0,0.00027561,5]
[364763437,1749232246580,-480.0,0.00027561,5]
[364763438,1749232246590,-480.0,0.00027561,5]
[364763439,1749232246599,-480.0,0.00027561,5]
[364763440,1749232246608,-480.0,0.00027561,5]
[364763441,1749232246618,-480.0,0.00027561,5]
[364763442,1749232246628,-480.0,0.00027561,5]
[364763443,1749232246638,-480.0,0.00027561,5]
[364763444,1749232246647,-564.72569507,0.00027561,5]
[364763445,1749232246657,-480.0,0.00027561,5]
[364763446,1749232246667,-600.0,0.00027561,30]
[364763447,1749232246676,-501.9987913,0.00027561,5]
[364763448,1749232246685,-480.0,0.00027561,5]
[364763449,1749232246695,-480.0,0.00027561,5]
[364763450,1749232246704,-480.0,0.00027561,5]
[364763451,1749232246716,-480.0,0.00027561,5]
[364763452,1749232246725,-480.0,0.00027561,5]
[364763453,1749232246734,-480.0,0.00027561,5]
[364763454,1749232246744,-480.0,0.00027561,5]
[364763455,1749232246753,-480.0,0.00027561,5]
[364763456,1749232246764,-480.0,0.00027561,5]
[364763457,1749232246773,-480.0,0.00027561,5]
[364763458,1749232246782,-480.0,0.00027561,5]
[364763459,1749232246792,-480.0,0.00027561,5]
[364763460,1749232246801,-480.0,0.00027561,5]
[364763461,1749232246810,-896.75,0.00027561,5]
[364763462,1749232246820,-480.0,0.00027561,5]
[364763463,1749232246829,-480.0,0.00027561,5]
[364763464,1749232246838,-480.0,0.00027561,5]
[364763465,1749232246847,-480.0,0.00027561,5]
[364763466,1749232246856,-197.05010142,0.00027561,5]
[364763467,1749232246865,-480.0,0.00027561,5]
[364763468,1749232246875,-460.0,0.00027561,5]
[364763469,1749232246884,-480.0,0.00027561,5]
[364763470,1749232246893,-480.0,0.00027561,5]
[364763471,1749232246903,-480.0,0.00027561,5]
[364763472,1749232246913,-431.09657841,0.00027561,5]
[364763473,1749232246923,-480.0,0.00027561,5]
[364763474,1749232246932,-480.0,0.00027561,5]
[364763475,1749232246941,-480.0,0.00027561,5]
[364763476,1749232246951,-409.09319824,0.00027561,5]
[364763477,1749232246961,-480.0,0.00027561,5]
[364763478,1749232246970,-630.9,0.00027561,5]
[364763479,1749232246980,-480.0,0.00027561,5]
[364763480,1749232246990,-777.390373,0.00027561,5]
[364763481,1749232246999,-480.0,0.00027561,5]
[364763482,1749232247009,-460.0,0.00027561,5]
[364763483,1749232247018,-480.0,0.00027561,5]
[364763484,1749232247027,-207.46247466,0.00027561,5]
[364763485,1749232247036,-480.0,0.00027561,5]
[364763486,1749232247045,-480.0,0.00027561,5]
[364763487,1749232247055,-480.0,0.00027561,5]
[364763488,1749232247064,-480.0,0.00027561,5]
[364763489,1749232247074,-480.0,0.00027561,5]
[364763490,1749232247083,-480.0,0.00027561,5]
[364763491,1749232247093,-480.0,0.00027561,5]
[364763492,1749232247103,-928.199775,0.00027561,5]
[364763493,1749232247112,-481.88,0.00027561,5]
[364763494,1749232247122,-480.0,0.00027561,5]
[364763495,1749232247131,-480.0,0.00027561,5]
[364763496,1749232247140,-413.21713935,0.00027561,5]
[364763497,1749232247150,-480.0,0.00027561,5]
[364763498,1749232247159,-480.0,0.00027561,5]
[364763499,1749232247169,-480.0,0.00027561,5]
[364763500,1749232247178,-480.0,0.00027561,5]
[364763501,1749232247187,-480.0,0.00027561,5]
[364763502,1749232247196,-480.0,0.00027561,5]
[364763503,1749232247205,-500.0,0.00027561,5]
[364763504,1749232247214,-458.60142033,0.00027561,5]
[364763505,1749232247224,-480.0,0.00027561,5]
[364763506,1749232247233,-480.0,0.00027561,5]
[364763507,1749232247242,-480.0,0.00027561,5]
[364763508,1749232247251,-480.0,0.00027561,5]
[364763509,1749232247260,-480.0,0.00027561,5]
[364763510,1749232247269,-480.0,0.00027561,5]
[364763511,1749232247279,-421.80531945,0.00027561,5]
[364763512,1749232247288,-1468.86,0.00027561,5]
[364763513,1749232247297,-480.0,0.00027561,5]
[364763514,1749232247306,-480.0,0.00027561,5]
[364763515,1749232247315,-536.62,0.00027561,5]
[364763516,1749232247324,-498.36593938,0.00027561,5]
[364763517,1749232247333,-480.0,0.00027561,5]
[364763518,1749232247342,-367.53371214,0.00027561,5]
[364763519,1749232247351,-480.0,0.00027561,5]
[364763520,1749232247361,-480.0,0.00027561,5]
[364763521,1749232247370,-480.0,0.00027561,5]
[364763522,1749232247379,-480.0,0.00027561,5]
[364763523,1749232247389,-480.0,0.00027561,5]
[364763524,1749232247402,-1047.33,0.00027561,5]
[364763525,1749232247412,-480.0,0.00027561,5]
[364763526,1749232247421,-468.01416028,0.00027561,5]
[364763527,1749232247431,-480.0,0.00027561,5]
[364763528,1749232247441,-480.0,0.00027561,2]
[364763529,1749232247451,-480.0,0.00027561,5]
[364763530,1749232247460,-548.21,0.00027561,5]
[364763531,1749232247471,-480.0,0.00027561,5]
[364763532,1749232247480,-480.0,0.00027561,5]
[364763533,1749232247491,-480.0,0.00027561,5]
[364763534,1749232247501,-506.36,0.00027561,5]
[364763535,1749232247510,-655.25,0.00027561,5]
[364763536,1749232247520,-480.0,0.00027561,5]
[364763537,1749232247529,-480.0,0.00027561,5]
[364763538,1749232247538,-480.0,0.00027561,5]
[364763539,1749232247548,-562.91,0.00027561,5]
[364763540,1749232247557,-201.32107364,0.00027561,5]
[364763541,1749232247566,-480.0,0.00027561,5]
[364763542,1749232247576,-480.0,0.00027561,5]
[364763543,1749232247585,-480.0,0.00027561,5]
[364763544,1749232247595,-681.75,0.00027561,5]
[364763545,1749232247604,-480.0,0.00027561,5]
[364763546,1749232247614,-1022.98,0.00027561,5]
[364763547,1749232247623,-1085.93,0.00027561,5]
[364763548,1749232247633,-480.0,0.00027561,5]
[364763549,1749232247642,-480.0,0.00027561,5]
[364763550,1749232247651,-480.0,0.00027561,5]
[364763551,1749232247661,-480.0,0.00027561,5]
[364763552,1749232247671,-480.0,0.00027561,5]
[364763553,1749232247680,-480.0,0.00027561,5]
[364763554,1749232247690,-480.0,0.00027561,5]
[364763555,1749232247700,-300.0,0.00027561,5]
[364763556,1749232247709,-480.0,0.00027561,5]
[364763557,1749232247718,-480.0,0.00027561,5]
[364763558,1749232247727,-480.0,0.00027561,5]
[364763559,1749232247736,-1146.93,0.00027561,5]
[364763560,1749232247746,-480.0,0.00027561,5]
[364763561,1749232247754,-480.0,0.00027561,5]
[364763562,1749232247764,-480.0,0.00027561,5]
[364763563,1749232247774,-480.0,0.00027561,5]
[364763564,1749232247783,-480.0,0.00027561,5]
[364763565,1749232247793,-778.09,0.00027561,5]
[364763566,1749232247802,-480.0,0.00027561,5]
[364763567,1749232247811,-480.0,0.00027561,5]
[364763568,1749232247820,-247.87578849,0.00027561,5]
[364763569,1749232247829,-480.0,0.00027561,5]
[364763570,1749232247839,-480.0,0.00027561,5]
[364763571,1749232247848,-559.45,0.00027561,5]
[364763572,1749232247857,-498.25,0.00027561,5]
[364763573,1749232247867,-305.93004804,0.00027561,5]
[364763574,1749232247876,-480.0,0.00027561,5]
[364763575,1749232247886,-480.0,0.00027561,5]
[364763576,1749232247895,-480.0,0.00027561,5]
[364763577,1749232247905,-480.0,0.00027561,5]
[364763578,1749232247915,-480.0,0.00027561,5]
[364763579,1749232247924,-480.0,0.00027561,5]
[364763580,1749232247933,-480.0,0.00027561,5]
[364763581,1749232247943,-480.0,0.00027561,5]
[364763582,1749232247952,-480.0,0.00027561,5]
[364763583,1749232247961,-625.10902855,0.00027561,5]
[364763584,1749232247971,-480.0,0.00027561,5]
[364763585,1749232247980,-480.0,0.00027561,5]
[364763586,1749232247990,-733.4,0.00027561,5]
[364763587,1749232247999,-480.0,0.00027561,5]
[364763588,1749232248009,-480.0,0.00027561,5]
[364763589,1749232248018,-407.03412895,0.00027561,5]
[364763590,1749232248027,-589.09,0.00027561,5]
[364763591,1749232248037,-480.0,0.00027561,5]
[364763592,1749232248046,-480.0,0.00027561,5]
[364763593,1749232248055,-480.0,0.00027561,5]
[364763594,1749232248065,-498.6571033,0.00027561,5]
[364763595,1749232248074,-480.0,0.00027561,5]
[364763596,1749232248084,-480.0,0.00027561,5]
[364763597,1749232248094,-480.0,0.00027561,5]
[364763598,1749232248104,-484.02,0.00027561,5]
[364763599,1749232248115,-1153.9,0.00027561,5]
[364763600,1749232248125,-480.0,0.00027561,5]
[364763601,1749232248134,-480.0,0.00027561,5]
[364763602,1749232248143,-903.84,0.00027561,5]
[364763603,1749232248153,-480.0,0.00027561,5]
[364763604,1749232248162,-498.96160582,0.00027561,5]
[364763605,1749232248173,-480.0,0.00027561,5]
[364763606,1749232248183,-556.62,0.00027561,5]
[364763607,1749232248193,-480.0,0.00027561,5]
[364763608,1749232248203,-981.49,0.00027561,5]
[364763609,1749232248213,-480.0,0.00027561,5]
[364763610,1749232248222,-550.34555804,0.00027561,5]
[364763611,1749232248232,-964.66,0.00027561,5]
[364763612,1749232248241,-480.0,0.00027561,5]
[364763613,1749232248251,-480.0,0.00027561,5]
[364763614,1749232248261,-678.4,0.00027561,5]
[364763615,1749232248270,-480.0,0.00027561,5]
[364763616,1749232248279,-480.0,0.00027561,5]
[364763617,1749232248288,-889.12,0.00027561,5]
[364763618,1749232248298,-412.84101312,0.00027561,5]
[364763619,1749232248308,-480.0,0.00027561,5]
[364763620,1749232248318,-521.62,0.00027561,5]
[364763621,1749232248327,-480.0,0.00027561,5]
[364763622,1749232248336,-480.0,0.00027561,5]
[364763623,1749232248346,-636.54,0.00027561,5]
[364763624,1749232248356,-733.8,0.00027561,5]
[364763625,1749232248365,-480.0,0.00027561,5]
[364763626,1749232248374,-480.0,0.00027561,5]
[364763627,1749232248384,-711.04,0.00027561,5]
[364763628,1749232248394,-480.0,0.00027561,5]
[364763629,1749232248406,-480.0,0.00027561,5]
[364763630,1749232248415,-480.0,0.00027561,5]
[364763631,1749232248424,-480.0,0.00027561,5]
[364763632,1749232248433,-480.0,0.00027561,5]
[364763633,1749232248443,-480.0,0.00027561,5]
[364763634,1749232248452,-480.0,0.00027561,5]
[364763635,1749232248461,-593.03,0.00027561,5]
[364763636,1749232248471,-480.0,0.00027561,5]
[364763637,1749232248481,-1263.91,0.00027561,5]
[364763638,1749232248491,-661.04,0.00027561,5]
[364763639,1749232248500,-1568.4,0.00027561,5]
[364763640,1749232248511,-502.9,0.00027561,5]
[364763641,1749232248520,-480.0,0.00027561,5]
[364763642,1749232248530,-480.0,0.00027561,5]
[364763643,1749232248539,-480.0,0.00027561,5]
[364763644,1749232248549,-480.0,0.00027561,5]
[364763645,1749232248558,-562.99,0.00027561,5]
[364763646,1749232248567,-480.0,0.00027561,5]
[364763647,1749232248577,-963.1,0.00027561,5]
[364763648,1749232248587,-480.0,0.00027561,5]
[364763649,1749232248596,-156.57172688,0.00027561,5]
[364763650,1749232248607,-584.26,0.00027561,5]
[364763651,1749232248616,-480.0,0.00027561,5]
[364763652,1749232248625,-480.0,0.00027561,5]
[364763653,1749232248635,-783.55,0.00027561,5]
[364763654,1749232248645,-694.01,0.00027561,5]
[364763655,1749232248654,-480.0,0.00027561,5]
[364763656,1749232248663,-480.0,0.00027561,5]
[364763657,1749232248672,-770.15,0.00027561,5]
[364763658,1749232248682,-480.0,0.00027561,5]
[364763659,1749232248691,-489.3,0.00027561,5]
[364763660,1749232248700,-258.749831,0.00027561,5]
[364763661,1749232248709,-1274.86,0.00027561,5]
[364763662,1749232248719,-534.72,0.00027561,5]
[364763663,1749232248728,-753.93,0.00027561,5]
[364763664,1749232248854,-480.0,0.00027561,5]
[364763665,1749232248864,-1368.77,0.00027561,5]
[364763666,1749232248874,-480.0,0.00027561,5]
[364763667,1749232248883,-1051.49,0.00027561,5]
[364763668,1749232248892,-858.86,0.00027561,5]
[364763669,1749232248902,-572.72,0.00027561,5]
[364763670,1749232248911,-833.3,0.00027561,5]
[364763671,1749232248921,-484.5,0.00027561,5]
[364763672,1749232248930,-480.0,0.00027561,5]
[364763673,1749232248940,-480.0,0.00027561,5]
[364763674,1749232248950,-7667.73,0.00027561,5]
[364763675,1749232248959,-336.93806806,0.00027561,5]
[364763676,1749232248969,-826.1,0.00027561,5]
[364763677,1749232248978,-2263.03,0.00027561,5]
[364763678,1749232248988,-4219.38,0.00027561,5]
[364763679,1749232248998,-480.0,0.00027561,5]
[364763680,1749232249008,-1005.48,0.00027561,5]
[364763681,1749232249018,-411.62581981,0.00027561,5]
[364763682,1749232249028,-714.02,0.00027561,5]
[364763683,1749232249037,-480.0,0.00027561,5]
[364763684,1749232249047,-480.0,0.00027561,5]
[364763685,1749232249057,-480.0,0.00027561,5]
[364763686,1749232249067,-853.91,0.00027561,5]
[364763687,1749232249076,-1449.47,0.00027561,5]
[364763688,1749232249086,-6635.09,0.00027561,5]
[364763689,1749232249096,-480.0,0.00027561,5]
[364763690,1749232249106,-480.0,0.00027561,5]
[364763691,1749232249115,-480.0,0.00027561,5]
[364763692,1749232249125,-501.24,0.00027561,5]
[364763693,1749232249135,-3881.8,0.00027561,5]
[364763694,1749232249144,-480.0,0.00027561,5]
[364763695,1749232249154,-480.0,0.00027561,5]
[364763696,1749232249163,-500.07556787,0.00027561,5]
[364763697,1749232249173,-2521.17,0.00027561,5]
[364763698,1749232249182,-480.0,0.00027561,5]
[364763699,1749232249192,-480.0,0.00027561,5]
[364763700,1749232249201,-1000.0,0.00027561,5]
[364763701,1749232249211,-480.0,0.00027561,5]
[364763702,1749232249221,-480.0,0.00027561,5]
[364763703,1749232249231,-478.18121221,0.00027561,5]
[364763704,1749232249240,-503.15,0.00027561,5]
[364763705,1749232249250,-480.0,0.00027561,5]
[364763706,1749232249259,-471.99101096,0.00027561,5]
[364763707,1749232249268,-674.03,0.00027561,5]
[364763708,1749232249277,-480.0,0.00027561,5]
[364763709,1749232249287,-480.0,0.00027561,5]
[364763710,1749232249296,-480.0,0.00027561,5]
[364763711,1749232249305,-480.0,0.00027561,5]
[364763712,1749232249315,-790.26,0.00027561,5]
[364763713,1749232249324,-480.0,0.00027561,5]
[364763714,1749232249334,-480.0,0.00027561,5]
[364763715,1749232249343,-1159.15,0.00027561,5]
[364763716,1749232249352,-480.0,0.00027561,5]